fUSD/lending_fUSD_20250514
["ID","MTS","AMOUNT","RATE_DAILY","PERIOD"]
[361075055,1747233043778,-1308.79,0.0001097,2]
[361075056,1747233043789,-400.0,0.0001097,2]
[361075057,1747233043801,-400.0,0.0001097,2]
[361075058,1747233043812,-402.93322443,0.0001097,2]
[361075059,1747233043825,-639.72,0.0001097,2]
[361075060,1747233043836,-400.0,0.0001097,2]
[361075061,1747233043848,-400.0,0.0001097,2]
[361075062,1747233043860,-400.0,0.0001097,2]
[361075063,1747233043872,-513.62379465,0.0001097,2]
[361075064,1747233043884,-400.0,0.0001097,2]
[361075065,1747233043897,-400.0,0.0001097,2]
[361075066,1747233043909,-1387.05,0.0001097,2]
[361075068,1747233043922,-400.0,0.0001097,2]
[361075069,1747233043934,-342.06382228,0.0001097,2]
[361075070,1747233043947,-400.0,0.0001097,2]
[361075071,1747233043959,-400.0,0.0001097,2]
[361075072,1747233043972,-414.15,0.0001097,2]
[361075073,1747233043984,-400.0,0.0001097,2]
[361075074,1747233043996,-400.0,0.0001097,2]
[361075075,1747233044008,-400.0,0.0001097,2]
[361075076,1747233044019,-709.08,0.0001097,2]
[361075077,1747233044031,-400.0,0.0001097,2]
[361075078,1747233044043,-545.35,0.0001097,2]
[361075079,1747233044055,-400.0,0.0001097,2]
[361075080,1747233044066,-400.0,0.0001097,2]
[361075081,1747233044078,-400.0,0.0001097,2]
[361075082,1747233044092,-400.0,0.0001097,2]
[361075083,1747233044103,-400.0,0.0001097,2]
[361075084,1747233044116,-400.0,0.0001097,2]
[361075085,1747233044127,-272.45895908,0.0001097,2]
[361075086,1747233044140,-400.0,0.0001097,2]
[361075087,1747233044151,-400.0,0.0001097,2]
[361075088,1747233044163,-456.7,0.0001097,2]
[361075089,1747233044177,-400.0,0.0001097,2]
[361075090,1747233044189,-400.0,0.0001097,2]
[361075091,1747233044201,-400.0,0.0001097,2]
[361075092,1747233044213,-2686.27,0.0001097,2]
[361075093,1747233044224,-400.0,0.0001097,2]
[361075094,1747233044236,-400.0,0.0001097,2]
[361075095,1747233044247,-400.0,0.0001097,2]
[361075096,1747233044258,-400.0,0.0001097,2]
[361075097,1747233044267,-400.0,0.0001097,2]
[361075098,1747233044276,-400.0,0.0001097,2]
[361075099,1747233044286,-896.96,0.0001097,2]
[361075100,1747233044295,-400.0,0.0001097,2]
[361075101,1747233044305,-450.0,0.0001097,2]
[361075102,1747233044314,-400.0,0.0001097,2]
[361075103,1747233044324,-400.0,0.0001097,2]
[361075104,1747233044333,-400.0,0.0001097,2]
[361075105,1747233044343,-400.0,0.0001097,2]
[361075106,1747233044353,-400.0,0.0001097,2]
[361075107,1747233044365,-400.0,0.0001097,2]
[361075108,1747233044375,-400.0,0.0001097,2]
[361075109,1747233044384,-400.0,0.0001097,2]
[361075110,1747233044394,-400.0,0.0001097,2]
[361075111,1747233044403,-400.0,0.0001097,2]
[361075112,1747233044805,-400.0,0.0001097,2]
[361075113,1747233044825,-400.0,0.0001097,2]
[361075114,1747233044835,-400.0,0.0001097,2]
[361075115,1747233044845,-400.0,0.0001097,2]
[361075116,1747233044856,-400.0,0.0001097,2]
[361075117,1747233044865,-400.0,0.0001097,2]
[361075118,1747233044875,-400.0,0.0001097,2]
[361075119,1747233044884,-397.32451298,0.0001097,2]
[361075120,1747233044893,-400.0,0.0001097,2]
[361075121,1747233044918,-400.0,0.0001097,2]
[361075122,1747233044927,-400.0,0.0001097,2]
[361075123,1747233044936,-400.0,0.0001097,2]
[361075124,1747233044945,-400.0,0.0001097,2]
[361075125,1747233044954,-505.35,0.0001097,2]
[361075126,1747233044963,-410.46916638,0.0001097,2]
[361075127,1747233044973,-400.0,0.0001097,2]
[361075128,1747233044983,-400.0,0.0001097,2]
[361075129,1747233044993,-400.12,0.0001097,2]
[361075130,1747233045002,-400.0,0.0001097,2]
[361075131,1747233045012,-401.28900843,0.0001097,2]
[361075132,1747233045023,-400.0,0.0001097,2]
[361075133,1747233045033,-401.20735324,0.0001097,2]
[361075134,1747233045043,-871.7,0.0001097,2]
[361075135,1747233045054,-400.0,0.0001097,2]
[361075136,1747233045064,-400.0,0.0001097,2]
[361075137,1747233045074,-400.0,0.0001097,2]
[361075138,1747233045085,-400.0,0.0001097,2]
[361075139,1747233045097,-891.44,0.0001097,2]
[361075140,1747233045107,-400.0,0.0001097,2]
[361075141,1747233045117,-400.0,0.0001097,2]
[361075142,1747233045127,-376.28475487,0.0001097,2]
[361075143,1747233045138,-400.0,0.0001097,2]
[361075144,1747233045149,-903.65,0.0001097,2]
[361075145,1747233045160,-408.6,0.0001097,2]
[361075146,1747233045171,-404.96305498,0.0001097,2]
[361075147,1747233045181,-400.0,0.0001097,2]
[361075148,1747233045191,-453.22,0.0001097,2]
[361075149,1747233045201,-400.0,0.0001097,2]
[361075150,1747233045211,-400.0,0.0001097,2]
[361075151,1747233045221,-491.48,0.0001097,2]
[361075152,1747233045231,-400.0,0.0001097,2]
[361075153,1747233045241,-400.0,0.0001097,2]
[361075154,1747233045251,-400.0,0.0001097,2]
[361075155,1747233045260,-400.0,0.0001097,2]
[361075156,1747233045270,-816.9,0.0001097,2]
[361075157,1747233045279,-400.0,0.0001097,2]
[361075158,1747233045288,-486.1,0.0001097,2]
[361075159,1747233045297,-400.0,0.0001097,2]
[361075160,1747233045307,-721.86,0.0001097,2]
[361075161,1747233045316,-500.62,0.0001097,2]
[361075162,1747233045325,-400.0,0.0001097,2]
[361075163,1747233045334,-512.06,0.0001097,2]
[361075164,1747233045344,-400.0,0.0001097,2]
[361075165,1747233045354,-794.04,0.0001097,2]
[361075166,1747233045365,-400.0,0.0001097,2]
[361075167,1747233045374,-400.0,0.0001097,2]
[361075168,1747233045384,-1334.77,0.0001097,2]
[361075169,1747233045394,-500.0,0.0001097,2]
[361075170,1747233045404,-400.0,0.0001097,2]
[361075171,1747233045414,-400.0,0.0001097,2]
[361075172,1747233045424,-1637.66,0.0001097,2]
[361075173,1747233045434,-400.0,0.0001097,2]
[361075174,1747233045444,-502.01093229,0.0001097,2]
[361075175,1747233045454,-400.0,0.0001097,2]
[361075176,1747233045464,-400.0,0.0001097,2]
[361075177,1747233045474,-400.0,0.0001097,2]
[361075178,1747233045484,-400.0,0.0001097,2]
[361075179,1747233045494,-472.55,0.0001097,2]
[361075180,1747233045504,-400.0,0.0001097,2]
[361075181,1747233045514,-688.81,0.0001097,2]
[361075182,1747233045524,-400.0,0.0001097,2]
[361075183,1747233045534,-329.81701546,0.0001097,2]
[361075184,1747233045544,-400.0,0.0001097,2]
[361075185,1747233045554,-400.0,0.0001097,2]
[361075186,1747233045564,-400.0,0.0001097,2]
[361075187,1747233045575,-1294.97,0.0001097,2]
[361075188,1747233045585,-476.36,0.0001097,2]
[361075189,1747233045599,-400.0,0.0001097,2]
[361075190,1747233045611,-400.0,0.0001097,2]
[361075191,1747233045621,-708.71,0.0001097,2]
[361075192,1747233045631,-400.0,0.0001097,2]
[361075193,1747233045642,-1000.0,0.0001097,2]
[361075195,1747233045652,-823.83,0.0001097,2]
[361075197,1747233045662,-400.0,0.0001097,2]
[361075198,1747233045672,-403.39,0.0001097,2]
[361075199,1747233045682,-400.0,0.0001097,2]
[361075200,1747233045691,-397.51213601,0.0001097,2]
[361075201,1747233045701,-536.04135594,0.0001097,2]
[361075202,1747233045710,-358.0,0.0001097,2]
[361075203,1747233045720,-400.0,0.0001097,2]
[361075204,1747233045730,-400.0,0.0001097,2]
[361075205,1747233045740,-404.43753463,0.0001097,2]
[361075207,1747233045750,-400.0,0.0001097,2]
[361075209,1747233045760,-400.0,0.0001097,2]
[361075211,1747233045770,-400.0,0.0001097,2]
[361075212,1747233045780,-400.0,0.0001097,2]
[361075213,1747233045791,-400.0,0.0001097,2]
[361075215,1747233045801,-400.0,0.0001097,2]
[361075216,1747233045810,-400.0,0.0001097,2]
[361075217,1747233045820,-400.0,0.0001097,2]
[361075218,1747233045830,-400.0,0.0001097,2]
[361075219,1747233045840,-400.0,0.0001097,2]
[361075220,1747233045850,-400.0,0.0001097,2]
[361075221,1747233045863,-5735.4,0.0001097,2]
[361075222,1747233045873,-400.0,0.0001097,2]
[361075223,1747233045883,-400.0,0.0001097,2]
[361075224,1747233045893,-400.0,0.0001097,2]
[361075225,1747233045903,-400.0,0.0001097,2]
[361075226,1747233045913,-400.0,0.0001097,2]
[361075227,1747233045923,-400.0,0.0001097,2]
[361075228,1747233045933,-783.95,0.0001097,2]
[361075229,1747233045943,-1605.55,0.0001097,2]
[361075230,1747233045953,-400.0,0.0001097,2]
[361075231,1747233045963,-576.45,0.0001097,2]
[361075232,1747233045973,-400.0,0.0001097,2]
[361075233,1747233045983,-808.92,0.0001097,2]
[361075234,1747233045993,-563.55,0.0001097,2]
[361075235,1747233046002,-1315.54,0.0001097,2]
[361075236,1747233046012,-400.0,0.0001097,2]
[361075237,1747233046021,-1894.41,0.0001097,2]
[361075238,1747233046031,-9675.81,0.0001097,2]
[361075239,1747233046040,-400.0,0.0001097,2]
[361075240,1747233046050,-400.0,0.0001097,2]
[361075241,1747233046060,-400.0,0.0001097,2]
[361075242,1747233046069,-400.0,0.0001097,2]
[361075243,1747233046079,-400.0,0.0001097,2]
[361075244,1747233046092,-364.68232102,0.0001097,2]
[361075245,1747233046102,-935.14,0.0001097,2]
[361075246,1747233046115,-1206.0,0.0001097,2]
[361075247,1747233046125,-526.89272252,0.0001097,2]
[361075248,1747233046135,-400.0,0.0001097,2]
[361075249,1747233046145,-577.58,0.0001097,2]
[361075250,1747233046155,-400.0,0.0001097,2]
[361075251,1747233046166,-400.0,0.0001097,2]
[361075252,1747233046176,-400.0,0.0001097,2]
[361075253,1747233046186,-861.06,0.0001097,2]
[361075254,1747233046197,-400.0,0.0001097,2]
[361075255,1747233046207,-14214.27,0.0001097,2]
[361075256,1747233046216,-400.0,0.0001097,2]
[361075257,1747233046226,-756.51,0.0001097,2]
[361075258,1747233046235,-423.45,0.0001097,2]
[361075259,1747233046245,-645.12,0.0001097,2]
[361075260,1747233046254,-400.0,0.0001097,2]
[361075261,1747233046263,-400.0,0.0001097,2]
[361075262,1747233046273,-400.0,0.0001097,2]
[361075263,1747233046283,-2883.58,0.0001097,2]
[361075264,1747233046293,-400.0,0.0001097,2]
[361075265,1747233046302,-400.0,0.0001097,2]
[361075266,1747233046311,-204.32547432,0.0001097,2]
[361075268,1747233046320,-400.0,0.0001097,2]
[361075269,1747233046330,-498.93,0.0001097,2]
[361075270,1747233046339,-400.0,0.0001097,2]
[361075271,1747233046348,-406.51,0.0001097,2]
[361075272,1747233046360,-545.39,0.0001097,2]
[361075273,1747233046369,-400.0,0.0001097,2]
[361075274,1747233046379,-400.0,0.0001097,2]
[361075275,1747233046389,-400.0,0.0001097,2]
[361075276,1747233046398,-400.0,0.0001097,2]
[361075277,1747233046407,-400.0,0.0001097,2]
[361075278,1747233046417,-400.0,0.0001097,2]
[361075279,1747233046427,-360.37767761,0.0001097,2]
[361075280,1747233046437,-687.79,0.0001097,2]
[361075281,1747233046446,-400.0,0.0001097,2]
[361075282,1747233046455,-1322.06,0.0001097,2]
[361075283,1747233046465,-400.0,0.0001097,2]
[361075284,1747233046475,-809.08,0.0001097,2]
[361075285,1747233046485,-400.0,0.0001097,2]
[361075286,1747233046494,-400.0,0.0001097,2]
[361075287,1747233046504,-681.55,0.0001097,2]
[361075288,1747233046514,-542.67,0.0001097,2]
[361075289,1747233046523,-400.0,0.0001097,2]
[361075290,1747233046533,-400.0,0.0001097,2]
[361075291,1747233046542,-877.95,0.0001097,2]
[361075292,1747233046552,-400.0,0.0001097,2]
[361075293,1747233046561,-400.0,0.0001097,2]
[361075294,1747233046571,-400.0,0.0001097,2]
[361075295,1747233046580,-400.0,0.0001097,2]
[361075296,1747233046590,-400.0,0.0001097,2]
[361075297,1747233046600,-400.0,0.0001097,2]
[361075298,1747233046612,-400.0,0.0001097,2]
[361075299,1747233046621,-400.0,0.0001097,2]
[361075300,1747233046631,-400.0,0.0001097,2]
[361075301,1747233046641,-400.0,0.0001097,2]
[361075302,1747233046650,-400.0,0.00010971,2]
[361075303,1747233046660,-400.0,0.00010971,2]
[361075304,1747233046669,-400.0,0.00010971,2]
[361075305,1747233046679,-400.0,0.00010971,2]
[361075306,1747233046688,-400.0,0.00010971,2]
[361075308,1747233046698,-400.0,0.00010971,2]
[361075309,1747233046708,-400.0,0.00010971,2]
[361075310,1747233046717,-425.27,0.00010971,2]
[361075311,1747233046727,-400.0,0.00010971,2]
[361075312,1747233046736,-400.0,0.00010971,2]
[361075313,1747233046746,-400.0,0.00010971,2]
[361075314,1747233046755,-483.85,0.00010971,2]
[361075315,1747233046765,-400.0,0.00010971,2]
[361075316,1747233046774,-428.91,0.00010971,2]
[361075317,1747233046784,-436.16,0.00010971,2]
[361075318,1747233046793,-400.0,0.00010971,2]
[361075319,1747233046803,-411.90553546,0.00010971,2]
[361075320,1747233046813,-5303.65284892,0.00011,2]
[361075321,1747233046823,-2167.12810011,0.00011099,2]
[361075322,1747233046832,-4399.7947286,0.00011099,2]
[361075323,1747233046842,-4399.79472853,0.00011142,2]
[361075324,1747233046853,-2167.12810008,0.00011144,2]
[361075325,1747233046864,-223.50365432,0.00011145,2]
[361075326,1747233046874,-3944.27,0.00011233,2]
[361075327,1747233046883,-400.0,0.00011242,2]
[361075328,1747233046893,-400.0,0.00011242,2]
[361075329,1747233046903,-620.28,0.00011242,2]
[361075330,1747233046912,-400.0,0.00011242,2]
[361075331,1747233046922,-400.0,0.00011242,2]
[361075332,1747233046931,-400.0,0.00011242,2]
[361075333,1747233046939,-394.54519717,0.00011242,2]
[361075334,1747233046948,-400.0,0.00011242,2]
[361075335,1747233046956,-613.76,0.00011242,2]
[361075336,1747233046964,-400.0,0.00011242,2]
[361075337,1747233046973,-1240.52,0.00011242,2]
[361075338,1747233046982,-400.0,0.00011242,2]
[361075339,1747233046991,-400.0,0.00011242,2]
[361075340,1747233046999,-2755.69,0.00011242,2]
[361075341,1747233047008,-400.0,0.00011242,2]
[361075342,1747233047017,-924.76,0.00011242,2]
[361075343,1747233047026,-400.0,0.00011242,2]
[361075344,1747233047034,-974.33,0.00011242,2]
[361075345,1747233047043,-1632.3,0.00011242,2]
[361075346,1747233047051,-2465.19,0.00011242,2]
[361075347,1747233047061,-1210.81,0.00011242,2]
[361075348,1747233047070,-710.4,0.00011242,2]
[361075349,1747233047079,-452.18,0.00011242,2]
[361075350,1747233047090,-400.0,0.00011242,2]
[361075351,1747233047099,-400.0,0.00011242,2]
[361075352,1747233047110,-400.0,0.00011242,2]
[361075353,1747233047121,-400.0,0.00011242,2]
[361075354,1747233047131,-400.0,0.00011242,2]
[361075355,1747233047144,-899.45,0.00011242,2]
[361075356,1747233047153,-482.499844,0.00011242,2]
[361075357,1747233047164,-950.45,0.00011242,2]
[361075358,1747233047173,-400.0,0.00011242,2]
[361075359,1747233047183,-546.67,0.00011242,2]
[361075360,1747233047192,-400.0,0.00011242,2]
[361075361,1747233047202,-400.0,0.00011242,2]
[361075362,1747233047212,-430.89,0.00011242,2]
[361075363,1747233047222,-425.96,0.00011242,2]
[361075364,1747233047231,-400.0,0.00011243,2]
[361075365,1747233047241,-400.0,0.00011243,2]
[361075366,1747233047250,-618.18,0.00011243,2]
[361075367,1747233047260,-400.0,0.00011243,2]
[361075368,1747233047270,-1867.92,0.00011243,2]
[361075369,1747233047279,-759.55,0.00011243,2]
[361075370,1747233047289,-228.44,0.00011243,2]
[361075371,1747233047299,-400.0,0.00011243,2]
[361075372,1747233047309,-558.93,0.00011243,2]
[361075373,1747233047318,-400.0,0.00011243,2]
[361075374,1747233047327,-400.0,0.00011243,2]
[361075375,1747233047337,-400.0,0.00011243,2]
[361075376,1747233047347,-912.56,0.00011243,2]
[361075377,1747233047358,-433.37,0.00011243,2]
[361075378,1747233047367,-400.0,0.00011243,2]
[361075379,1747233047377,-572.8,0.00011243,2]
[361075380,1747233047387,-487.85,0.00011243,2]
[361075381,1747233047398,-400.0,0.00011243,2]
[361075382,1747233047408,-643.56,0.00011243,2]
[361075383,1747233047418,-428.68,0.00011243,2]
[361075384,1747233047428,-400.0,0.00011243,2]
[361075385,1747233047438,-519.13,0.00011243,2]
[361075386,1747233047447,-400.0,0.00011243,2]
[361075387,1747233047456,-465.16,0.00011243,2]
[361075388,1747233047465,-400.0,0.00011243,2]
[361075389,1747233047475,-400.0,0.00011243,2]
[361075390,1747233047484,-400.0,0.00011243,2]
[361075391,1747233047493,-400.0,0.00011243,2]
[361075392,1747233047503,-400.0,0.00011243,2]
[361075393,1747233047512,-400.0,0.00011243,2]
[361075394,1747233047522,-400.0,0.00011243,2]
[361075395,1747233047531,-1125.88,0.00011243,2]
[361075396,1747233047540,-400.0,0.00011243,2]
[361075397,1747233047550,-765.54,0.00011243,2]
[361075398,1747233047559,-400.0,0.00011243,2]
[361075399,1747233047568,-400.0,0.00011243,2]
[361075400,1747233047578,-400.0,0.00011243,2]
[361075401,1747233047587,-400.0,0.00011243,2]
[361075402,1747233047597,-6772.009679,0.00011243,2]
[361075403,1747233047608,-400.0,0.00011243,2]
[361075404,1747233047618,-207.181584,0.00011243,2]
[361075405,1747233047628,-620.36,0.00011243,2]
[361075406,1747233047637,-400.0,0.00011243,2]
[361075407,1747233047646,-400.0,0.00011243,2]
[361075408,1747233047655,-469.67,0.00011243,2]
[361075409,1747233047664,-400.0,0.00011243,2]
[361075410,1747233047671,-570.38,0.00011243,2]
[361075411,1747233047679,-520.54,0.00011243,2]
[361075412,1747233047688,-400.0,0.00011243,2]
[361075413,1747233047699,-561.94,0.00011243,2]
[361075414,1747233047709,-400.0,0.00011243,2]
[361075415,1747233047719,-530.29,0.00011243,2]
[361075416,1747233047728,-400.0,0.00011243,2]
[361075417,1747233047738,-400.0,0.00011243,2]
[361075418,1747233047748,-496.88,0.00011243,2]
[361075419,1747233047758,-400.0,0.00011243,2]
[361075420,1747233047768,-400.0,0.00011243,2]
[361075421,1747233047777,-400.0,0.00011243,2]
[361075422,1747233047787,-400.0,0.00011243,2]
[361075423,1747233047796,-316.84506215,0.00011243,2]
[361075424,1747233047805,-400.0,0.00011243,2]
[361075425,1747233047814,-400.0,0.00011243,2]
[361075426,1747233047824,-400.0,0.00011243,2]
[361075427,1747233047834,-473.35,0.00011243,2]
[361075428,1747233047844,-803.77,0.00011243,2]
[361075429,1747233047853,-400.0,0.00011243,2]
[361075430,1747233047869,-626.34,0.00011243,2]
[361075431,1747233047878,-400.0,0.00011243,2]
[361075432,1747233047888,-591.08,0.00011243,2]
[361075433,1747233047899,-456.07,0.00011243,2]
[361075434,1747233047909,-4896.9,0.00011243,2]
[361075435,1747233047919,-400.0,0.00011243,2]
[361075436,1747233047929,-548.54,0.00011243,2]
[361075437,1747233047938,-503.82,0.00011243,2]
[361075438,1747233047948,-400.0,0.00011243,2]
[361075439,1747233047958,-400.0,0.00011243,2]
[361075440,1747233047969,-656.32,0.00011243,2]
[361075441,1747233047978,-1170.34,0.00011243,2]
[361075442,1747233047988,-1452.2,0.00011243,2]
[361075443,1747233047998,-400.0,0.00011243,2]
[361075444,1747233048008,-3660.43,0.00011243,2]
[361075445,1747233048018,-400.0,0.00011243,2]
[361075446,1747233048028,-435.84,0.00011243,2]
[361075447,1747233048209,-400.0,0.00011243,2]
[361075448,1747233048253,-1067.81,0.00011243,2]
[361075449,1747233048264,-588.53,0.00011243,2]
[361075450,1747233048275,-1498.61,0.00011243,2]
[361075451,1747233048285,-1099.48,0.00011243,2]
[361075452,1747233048296,-595.69,0.00011243,2]
[361075453,1747233048307,-1229.38,0.00011243,2]
[361075454,1747233048317,-2309.4,0.00011243,2]
[361075455,1747233048327,-760.79,0.00011243,2]
[361075456,1747233048338,-438.98,0.00011243,2]
[361075457,1747233048349,-400.0,0.00011243,2]
[361075458,1747233048363,-787.26,0.00011243,2]
[361075459,1747233048373,-1068.6,0.00011243,2]
[361075460,1747233048382,-400.0,0.00011243,2]
[361075461,1747233048392,-669.67,0.00011243,2]
[361075462,1747233048403,-3065.87,0.00011243,2]
[361075463,1747233048414,-1620.07,0.00011243,2]
[361075464,1747233048424,-400.0,0.00011243,2]
[361075465,1747233048434,-2986.87,0.00011243,2]
[361075466,1747233048444,-1653.13,0.00011243,2]
[361075467,1747233048455,-770.31,0.00011243,2]
[361075468,1747233048466,-1708.92,0.00011243,2]
[361075469,1747233048477,-400.0,0.00011243,2]
[361075470,1747233048487,-1266.68,0.00011243,2]
[361075471,1747233048497,-400.0,0.00011243,2]
[361075472,1747233048508,-938.25,0.00011243,2]
[361075473,1747233048518,-1176.2,0.00011243,2]
[361075474,1747233048530,-1175.15,0.00011243,2]
[361075475,1747233048541,-1266.59,0.00011243,2]
[361075476,1747233048551,-1318.66,0.00011243,2]
[361075477,1747233048560,-2429.17,0.00011243,2]
[361075478,1747233048570,-400.0,0.00011243,2]
[361075479,1747233048580,-463.91,0.00011243,2]
[361075480,1747233048590,-2053.01,0.00011243,2]
[361075481,1747233048602,-1447.22,0.00011243,2]
[361075482,1747233048615,-2062.49,0.00011243,2]
[361075483,1747233048625,-400.0,0.00011243,2]
[361075484,1747233048635,-400.0,0.00011243,2]
[361075485,1747233048646,-400.0,0.00011243,2]
[361075486,1747233048657,-626.09,0.00011243,2]
[361075487,1747233048667,-743.89,0.00011243,2]
[361075488,1747233048678,-5488.32,0.00011243,2]
[361075489,1747233048688,-400.0,0.00011243,2]
[361075490,1747233048698,-1088.62,0.00011243,2]
[361075491,1747233048709,-546.22,0.00011243,2]
[361075492,1747233048719,-400.0,0.00011243,2]
[361075493,1747233048730,-400.0,0.00011243,2]
[361075494,1747233048741,-417.85,0.00011243,2]
[361075495,1747233048751,-607.4,0.00011243,2]
[361075496,1747233048762,-4506.42,0.00011243,2]
[361075497,1747233048772,-2308.03,0.00011243,2]
[361075498,1747233048783,-439.31,0.00011243,2]
[361075499,1747233048793,-5594.55,0.00011243,2]
[361075500,1747233048803,-993.41,0.00011243,2]
[361075501,1747233048813,-1139.65,0.00011243,2]
[361075502,1747233048823,-580.59,0.00011243,2]
[361075503,1747233048832,-3507.6,0.00011243,2]
[361075504,1747233048841,-693.99,0.00011243,2]
[361075505,1747233048851,-1803.1,0.00011243,2]
[361075506,1747233048862,-400.0,0.00011243,2]
[361075507,1747233048872,-2228.34,0.00011243,2]
[361075508,1747233048882,-1322.06,0.00011243,2]
[361075509,1747233048892,-400.0,0.00011243,2]
[361075510,1747233048902,-400.0,0.00011243,2]
[361075511,1747233048911,-400.0,0.00011243,2]
[361075512,1747233048921,-400.0,0.00011243,2]
[361075513,1747233048931,-400.0,0.00011243,2]
[361075514,1747233048941,-871.24,0.00011243,2]
[361075515,1747233048951,-400.0,0.00011243,2]
[361075516,1747233048961,-407.41,0.00011243,2]
[361075517,1747233048971,-512.39,0.00011243,2]
[361075518,1747233048981,-1808.91,0.00011243,2]
[361075519,1747233048991,-1304.51,0.00011243,2]
[361075520,1747233049001,-476.66,0.00011243,2]
[361075521,1747233049011,-400.0,0.00011243,2]
[361075522,1747233049021,-4688.03,0.00011243,2]
[361075523,1747233049031,-400.0,0.00011243,2]
[361075524,1747233049041,-673.14,0.00011243,2]
[361075525,1747233049051,-400.0,0.00011243,2]
[361075526,1747233049061,-13288.72,0.00011243,2]
[361075527,1747233049071,-400.0,0.00011243,2]
[361075528,1747233049081,-2258.76,0.00011243,2]
[361075529,1747233049093,-400.0,0.00011243,2]
[361075530,1747233049102,-629.04,0.00011243,2]
[361075531,1747233049115,-519.76,0.00011243,2]
[361075532,1747233049125,-1146.54,0.00011243,2]
[361075533,1747233049135,-400.0,0.00011243,2]
[361075534,1747233049144,-646.27,0.00011243,2]
[361075535,1747233049154,-400.0,0.00011243,2]
[361075536,1747233049164,-4101.08,0.00011243,2]
[361075537,1747233049175,-400.0,0.00011243,2]
[361075538,1747233049186,-555.25,0.00011243,2]
[361075539,1747233049195,-636.19,0.00011243,2]
[361075540,1747233049205,-1541.56,0.00011243,2]
[361075541,1747233049215,-400.0,0.00011244,2]
[361075542,1747233049225,-400.0,0.00011244,2]
[361075543,1747233049234,-400.0,0.00011244,2]
[361075544,1747233049244,-400.0,0.00011244,2]
[361075545,1747233049253,-400.0,0.00011244,2]
[361075546,1747233049263,-400.0,0.00011244,2]
[361075547,1747233049273,-400.0,0.00011244,2]
[361075548,1747233049283,-400.0,0.00011244,2]
[361075549,1747233049293,-400.0,0.00011244,2]
[361075550,1747233049302,-250.0,0.00011244,2]
[361075551,1747233049312,-205.14726649,0.00011244,2]
[361075552,1747233049322,-400.0,0.00011244,2]
[361075553,1747233049331,-400.0,0.00011244,2]
[361075554,1747233049341,-400.0,0.00011244,2]
[361075555,1747233049351,-400.0,0.00011244,2]
[361075556,1747233049363,-400.0,0.00011244,2]
[361075557,1747233049373,-400.0,0.00011244,2]
[361075558,1747233049382,-400.0,0.00011244,2]
[361075559,1747233049392,-400.0,0.00011244,2]
[361075560,1747233049402,-400.0,0.00011244,2]
[361075561,1747233049411,-400.0,0.00011244,2]
[361075562,1747233049422,-255.17045747,0.00011244,2]
[361075563,1747233049432,-400.0,0.00011244,2]